bitfinex/quotes_BTCUSD_20240831
["timestamp","ask_amount","ask_price","bid_price","bid_amount"]
[1725146904490,0.02733893,59148.0,59147.0,2.00066449]
[1725146904831,0.02733893,59148.0,59147.0,1.8992957]
[1725146905380,0.02733893,59148.0,59147.0,1.9677557]
[1725146905845,0.02733893,59148.0,59147.0,2.3058957]
[1725146908089,0.02733893,59148.0,59147.0,1.77633329]
[1725146908308,0.02733893,59148.0,59147.0,1.98635586]
[1725146908777,0.000818,59148.0,59147.0,1.98635586]
[1725146909219,0.000818,59148.0,59147.0,1.98637351]
[1725146910381,0.000818,59148.0,59147.0,1.88496531]
[1725146910602,0.000818,59148.0,59147.0,1.9863932]
[1725146910820,0.000818,59148.0,59147.0,1.88496531]
[1725146911504,0.000818,59148.0,59147.0,1.88496536]
[1725146912180,0.02733892,59148.0,59147.0,1.88496536]
[1725146912954,0.000818,59148.0,59147.0,1.88496536]
[1725146913656,0.000818,59148.0,59147.0,2.01172562]
[1725146915299,0.02733887,59148.0,59147.0,2.01172562]
[1725146916595,0.02733887,59148.0,59147.0,1.88496536]
[1725146918195,0.02733887,59148.0,59147.0,1.86907129]
[1725146918421,0.02733887,59148.0,59147.0,1.88496535]
[1725146918851,0.000818,59148.0,59147.0,1.88496535]
[1725146921362,0.000818,59148.0,59147.0,1.86907129]
[1725146921559,0.000818,59148.0,59147.0,1.88496535]
[1725146922335,0.02733878,59148.0,59147.0,1.88496535]
[1725146925436,0.02733878,59148.0,59147.0,1.86907129]
[1725146925877,0.02733878,59148.0,59147.0,1.88496536]
[1725146929051,0.02733878,59148.0,59147.0,1.88296536]
[1725146929262,0.02733878,59148.0,59147.0,1.81686535]
[1725146929724,0.02733878,59148.0,59147.0,1.81186535]
[1725146929850,0.09253878,59148.0,59147.0,0.64192888]
[1725146930103,0.09253878,59148.0,59147.0,0.65782394]
[1725146930317,0.09253878,59148.0,59147.0,0.57346888]
[1725146930524,0.09253878,59148.0,59147.0,0.68656562]
[1725146931418,0.09253878,59148.0,59147.0,0.55946888]
[1725146931827,0.09253878,59148.0,59147.0,0.89760888]
[1725146932262,0.09253878,59148.0,59147.0,0.91160888]
[1725146932478,0.09253878,59148.0,59147.0,0.89760888]
[1725146932678,0.09253878,59148.0,59147.0,0.91160888]
[1725146932889,0.09253878,59148.0,59147.0,0.89760888]
[1725146933338,0.09253878,59148.0,59147.0,0.91160888]
[1725146934806,0.09253878,59148.0,59147.0,0.91660888]
[1725146936395,0.09253878,59148.0,59147.0,0.91160888]
[1725146936628,0.09253878,59148.0,59147.0,0.88360888]
[1725146937079,0.09253878,59148.0,59147.0,0.91160888]
[1725146937306,0.09253878,59148.0,59147.0,0.89760888]
[1725146938241,0.09253878,59148.0,59147.0,0.66108342]
[1725146938471,0.09253878,59148.0,59147.0,0.64708342]
[1725146938700,0.09253878,59148.0,59147.0,0.66108342]
[1725146938916,0.09253878,59148.0,59147.0,0.99922342]
[1725146939143,0.26160578,59148.0,59147.0,0.50601342]
[1725146939355,0.26160578,59148.0,59147.0,0.0288998]
[1725146940210,0.26160578,59148.0,59147.0,0.07970188]
[1725146940418,0.09253878,59148.0,59147.0,0.07970188]
[1725146940842,0.09253878,59148.0,59147.0,0.0288998]
[1725146946348,0.07289565,59150.0,59147.0,0.0288998]
[1725146947184,0.24195665,59150.0,59147.0,0.0288998]
[1725146947671,0.24195665,59150.0,59147.0,0.0148998]
[1725146948077,0.24195665,59150.0,59147.0,0.0288998]
[1725146948684,0.24195665,59150.0,59147.0,0.0148998]
[1725146948888,0.24195665,59150.0,59147.0,0.0288998]
[1725146949517,0.26215665,59150.0,59147.0,0.0288998]
[1725146951311,0.28868155,59150.0,59147.0,0.0288998]
[1725146953386,0.12043855,59150.0,59147.0,0.0288998]
[1725146954530,0.169064,59149.0,59147.0,0.0288998]
[1725146955682,0.169064,59149.0,59147.0,0.0008998]
[1725146955916,0.169064,59149.0,59147.0,0.0148998]
[1725146956150,0.169064,59149.0,59147.0,0.0288998]
[1725146956608,0.169067,59148.0,59147.0,0.0288998]
[1725146956852,0.507201,59148.0,59147.0,0.0288998]
[1725146957642,0.507201,59148.0,59147.0,0.0148998]
[1725146957816,0.507201,59148.0,59147.0,0.0288998]
[1725146958912,1.38649141,59148.0,59147.0,0.0288998]
[1725146959076,1.38649141,59148.0,59147.0,0.0148998]
[1725146959278,1.38649141,59148.0,59147.0,0.0288998]
[1725146959692,1.82462541,59148.0,59147.0,0.0288998]
[1725146960140,1.82462541,59148.0,59147.0,0.0148998]
[1725146960556,1.82462541,59148.0,59147.0,0.0258998]
[1725146960708,1.82462541,59148.0,59147.0,0.0008998]
[1725146961067,1.82462541,59148.0,59147.0,0.0198998]
[1725146961498,1.82462541,59148.0,59147.0,0.0058998]
[1725146961941,1.82462541,59148.0,59147.0,0.0108998]
[1725146962593,1.82462541,59148.0,59147.0,0.0058998]
[1725146963007,1.82462541,59148.0,59147.0,0.0008998]
[1725146963378,1.82462541,59148.0,59147.0,0.0018998]
[1725146963935,1.82462541,59148.0,59147.0,0.0028998]
[1725146964341,1.82462541,59148.0,59147.0,0.0018998]
[1725146964999,1.82462541,59148.0,59147.0,0.0028998]
[1725146975507,1.82462541,59148.0,59147.0,0.0018998]
[1725146976193,1.82462541,59148.0,59147.0,0.0028998]
[1725146976614,1.82462541,59148.0,59147.0,0.0018998]
[1725146977040,1.718003,59148.0,59147.0,0.0028998]
[1725146977296,1.82462541,59148.0,59147.0,0.0018998]
[1725146977525,1.82544341,59148.0,59147.0,0.0038998]
[1725146977773,1.82544341,59148.0,59147.0,0.0068998]
[1725146979621,1.72904341,59148.0,59147.0,0.0068998]
[1725146982240,0.946153,59148.0,59147.0,0.0668998]
[1725146982536,1.284287,59148.0,59147.0,0.0668998]
[1725146982765,1.284287,59148.0,59147.0,0.0068998]
[1725146989509,1.39090941,59148.0,59147.0,0.0068998]
[1725146998178,1.284287,59148.0,59147.0,0.0068998]
[1725146998401,1.39090941,59148.0,59147.0,0.0068998]
[1725147039729,1.284287,59148.0,59147.0,0.0068998]
[1725147039952,1.284287,59148.0,59147.0,0.0700998]
[1725147039953,1.39090941,59148.0,59147.0,0.0700998]
[1725147056588,1.284287,59148.0,59147.0,0.0700998]
[1725147058409,1.39090941,59148.0,59147.0,0.0700998]
[1725147068568,1.39090941,59148.0,59147.0,0.0670998]
[1725147070325,1.39090941,59148.0,59147.0,0.0700998]
[1725147070780,1.39090941,59148.0,59147.0,0.0640998]
[1725147071003,1.39090941,59148.0,59147.0,0.0670998]
[1725147071222,1.39090941,59148.0,59147.0,0.0700998]
[1725147071898,1.39090941,59148.0,59147.0,0.0670998]
[1725147072090,1.39090941,59148.0,59147.0,0.0640998]
[1725147072347,1.39090941,59148.0,59147.0,0.0660998]
[1725147073201,1.39090941,59148.0,59147.0,0.0690998]
[1725147084807,2.35981341,59148.0,59147.0,0.0058998]
[1725147085990,2.35981341,59148.0,59147.0,0.0028998]
[1725147086204,2.35981341,59148.0,59147.0,0.0048998]
[1725147086637,2.35981341,59148.0,59135.0,0.0008998]
[1725147086638,1.18371,59136.0,59135.0,0.0008998]
[1725147086880,2.51905141,59136.0,59135.0,0.0008998]
[1725147087093,2.61905141,59136.0,59135.0,0.0008998]
[1725147087321,2.98379024,59136.0,59135.0,0.0008998]
[1725147087545,2.55386124,59136.0,59135.0,0.0008998]
[1725147087748,2.72241288,59136.0,59135.0,0.0008998]
[1725147087958,2.72341288,59136.0,59135.0,0.0008998]
[1725147088374,2.72641288,59136.0,59135.0,0.0008998]
[1725147089063,2.98499347,59136.0,59135.0,0.0008998]
[1725147089275,3.09161588,59136.0,59135.0,0.0008998]
[1725147089519,3.09361588,59136.0,59135.0,0.0008998]
[1725147089935,3.09461588,59136.0,59135.0,0.0008998]
[1725147090340,3.09661588,59136.0,59135.0,0.0008998]
[1725147090763,3.59592588,59136.0,59135.0,0.0008998]
[1725147091181,3.59992588,59136.0,59135.0,0.0008998]
[1725147091390,3.62466564,59136.0,59135.0,0.0008998]
[1725147092027,3.70196564,59136.0,59135.0,0.0008998]
[1725147092229,3.70883424,59136.0,59135.0,0.0008998]
[1725147094095,3.71083424,59136.0,59135.0,0.0008998]
[1725147094804,3.70783424,59136.0,59135.0,0.0008998]
[1725147095039,3.70383424,59136.0,59135.0,0.0008998]
[1725147095997,3.71083424,59136.0,59135.0,0.0018998]
[1725147096238,5.04598324,59136.0,59135.0,0.0018998]
[1725147096490,5.04598324,59136.0,59135.0,0.0008998]
[1725147096491,5.03898324,59136.0,59135.0,0.0008998]
[1725147096729,5.03898324,59136.0,59135.0,0.0018998]
[1725147096730,5.04598324,59136.0,59135.0,0.0018998]
[1725147096992,5.05498324,59136.0,59135.0,0.0028998]
[1725147097218,5.04598324,59136.0,59135.0,0.0018998]
[1725147097419,5.06177124,59136.0,59135.0,0.0028998]
[1725147097675,5.05477124,59136.0,59135.0,0.0018998]
[1725147097914,5.04577124,59136.0,59135.0,0.0008998]
[1725147098122,5.06777124,59136.0,59135.0,0.0028998]
[1725147099761,5.04577124,59136.0,59135.0,0.0008998]
[1725147100106,5.04577124,59136.0,59135.0,0.0018998]
[1725147100107,4.47400759,59136.0,59135.0,0.0018998]
[1725147100318,4.57343,59136.0,59135.0,0.0018998]
[1725147100776,4.56043,59136.0,59135.0,0.0008998]
[1725147100988,4.48313,59136.0,59135.0,0.0008998]
[1725147101214,4.66168164,59136.0,59135.0,0.0018998]
[1725147101633,4.55505923,59136.0,59135.0,0.0018998]
[1725147101843,4.66168164,59136.0,59135.0,0.0018998]
[1725147102259,4.67938722,59136.0,59135.0,0.0018998]
[1725147103276,4.68138722,59136.0,59135.0,0.0018998]
[1725147108166,2.86636922,59136.0,59135.0,0.0018998]
[1725147108359,5.71331122,59136.0,59135.0,0.0018998]
[1725147109826,5.62329022,59136.0,59135.0,0.0018998]
[1725147113984,5.00791317,59136.0,59135.0,0.0018998]
[1725147114188,2.22799217,59136.0,59135.0,0.1482998]
[1725147114439,2.33461458,59136.0,59135.0,0.1482998]
[1725147115482,2.35761458,59136.0,59135.0,0.1482998]
[1725147115750,2.32961458,59136.0,59135.0,0.1482998]
[1725147118553,2.22381017,59136.0,59135.0,0.1482998]
[1725147118792,2.33043258,59136.0,59135.0,0.1482998]
[1725147119805,2.32364458,59136.0,59135.0,0.1482998]
[1725147123076,2.49219622,59136.0,59135.0,0.0665998]
[1725147127808,2.49719622,59136.0,59135.0,0.0018998]
[1725147128046,2.52019622,59136.0,59135.0,0.0018998]
[1725147128511,2.85839922,59136.0,59135.0,0.0018998]
[1725147128740,3.17821722,59136.0,59135.0,0.0018998]
[1725147128970,3.19841722,59136.0,59135.0,0.0018998]
[1725147129663,2.87859922,59136.0,59135.0,0.0018998]
[1725147129938,4.10738122,59136.0,59135.0,0.0018998]
[1725147134525,3.16382258,59136.0,59135.0,0.0018998]
[1725147149754,3.17382258,59136.0,59135.0,0.0018998]
[1725147149987,2.69984758,59136.0,59135.0,0.0018998]
[1725147150260,3.30282058,59136.0,59135.0,0.0018998]
[1725147154017,3.18025958,59136.0,59135.0,0.0018998]
[1725147156886,3.17025958,59136.0,59135.0,0.0008998]
[1725147157307,3.18125958,59136.0,59135.0,0.0018998]
[1725147157944,3.15925958,59136.0,59135.0,0.0008998]
[1725147158154,3.17025958,59136.0,59135.0,0.0008998]
[1725147158382,3.16625958,59136.0,59135.0,0.0018998]
[1725147158799,3.17325958,59136.0,59135.0,0.0018998]
[1725147159008,3.16625958,59136.0,59135.0,0.0018998]
[1725147159474,3.17225958,59136.0,59135.0,0.0018998]
[1725147160143,3.16525958,59136.0,59135.0,0.0008998]
[1725147160385,3.17125958,59136.0,59135.0,0.0018998]
[1725147160855,3.15925958,59136.0,59135.0,0.0008998]
[1725147161303,3.29058964,59136.0,59135.0,0.0018998]
[1725147161529,3.28358964,59136.0,59135.0,0.0018998]
[1725147162053,3.29458964,59136.0,59135.0,0.0018998]
[1725147162301,3.28358964,59136.0,59135.0,0.0018998]
[1725147162523,3.28358964,59136.0,59135.0,0.0008998]
[1725147162959,3.22578964,59136.0,59135.0,0.0018998]
[1725147163420,2.33264458,59136.0,59135.0,0.1440998]
[1725147163670,2.23202217,59136.0,59135.0,0.1450998]
[1725147163903,2.33864458,59136.0,59135.0,0.1450998]
[1725147164135,2.32564458,59136.0,59135.0,0.1440998]
[1725147164368,2.33364458,59136.0,59135.0,0.1440998]
[1725147164588,2.34064458,59136.0,59135.0,0.1440998]
[1725147165054,2.31764458,59136.0,59135.0,0.1440998]
[1725147170557,1.77281917,59136.0,59135.0,0.1440998]
[1725147172114,1.87281917,59136.0,59135.0,0.1440998]
[1725147172962,1.97944158,59136.0,59135.0,0.1440998]
[1725147173442,1.53461617,59136.0,59135.0,0.1440998]
[1725147173667,1.51691059,59136.0,59135.0,0.1440998]
[1725147173883,1.49517083,59136.0,59135.0,0.1440998]
[1725147174771,1.48017083,59136.0,59135.0,0.1440998]
[1725147174983,1.48117083,59136.0,59135.0,0.1480998]
[1725147175199,1.48217083,59136.0,59135.0,0.1480998]
[1725147182709,0.80576483,59136.0,59135.0,0.1480998]
[1725147182952,1.117432,59136.0,59135.0,0.1480998]
[1725147188134,1.455635,59136.0,59135.0,0.1480998]
[1725147188988,1.454635,59136.0,59135.0,0.1440998]
[1725147189203,1.792838,59136.0,59135.0,0.1480998]
[1725147190561,1.791838,59136.0,59135.0,0.1440998]
[1725147190781,1.792838,59136.0,59135.0,0.1490998]
[1725147191020,1.793838,59136.0,59135.0,0.1570998]
[1725147191247,1.792838,59136.0,59135.0,0.1520998]
[1725147191472,1.793838,59136.0,59135.0,0.1570998]
[1725147203612,1.455635,59136.0,59135.0,0.1570998]
[1725147210926,1.117432,59136.0,59135.0,0.1570998]
[1725147213357,0.779229,59136.0,59135.0,0.1570998]
[1725147216055,0.48446642,59136.0,59135.0,0.1570998]
[1725147216286,0.82266942,59136.0,59135.0,0.1570998]
[1725147218273,0.84920182,59136.0,59135.0,0.1570998]
[1725147219341,0.4675534,59136.0,59135.0,0.1570998]
[1725147219554,0.6366544,59136.0,59135.0,0.1570998]
[1725147221153,0.610122,59136.0,59135.0,0.1570998]
[1725147224075,0.271919,59136.0,59135.0,0.1570998]
[1725147224498,0.29845141,59136.0,59135.0,0.1570998]
[1725147227409,0.97485741,59136.0,59135.0,0.0788998]
[1725147241053,1.31306041,59136.0,59135.0,0.0788998]
[1725147245336,1.31106041,59136.0,59135.0,0.0658998]
[1725147245555,1.31206041,59136.0,59135.0,0.0708998]
[1725147245768,1.31306041,59136.0,59135.0,0.0788998]
[1725147246189,1.31206041,59136.0,59135.0,0.0708998]
[1725147246638,1.31306041,59136.0,59135.0,0.0788998]
[1725147246846,1.31206041,59136.0,59135.0,0.0738998]
[1725147247072,1.31206041,59136.0,59135.0,0.0828998]
[1725147247279,1.31306041,59136.0,59135.0,0.0828998]
[1725147251303,1.01541821,59136.0,59135.0,0.0828998]
[1725147251757,1.18451921,59136.0,59135.0,0.0828998]
[1725147252386,0.84631621,59136.0,59135.0,0.1606998]
[1725147253504,0.94631621,59136.0,59135.0,0.1606998]
[1725147257493,0.94713421,59136.0,59135.0,0.1606998]
[1725147261182,0.97366711,59136.0,59135.0,0.1606998]
[1725147265088,0.94713421,59136.0,59135.0,0.1606998]
[1725147268344,0.97366677,59136.0,59135.0,0.1606998]
[1725147268768,0.94713421,59136.0,59135.0,0.1606998]
[1725147271701,0.60893121,59136.0,59135.0,0.1606998]
[1725147273746,0.94713421,59136.0,59135.0,0.1606998]
[1725147278212,0.97366682,59136.0,59135.0,0.1606998]
[1725147278893,0.94713421,59136.0,59135.0,0.1606998]
[1725147279364,0.60893121,59136.0,59135.0,0.1606998]
[1725147284436,0.271919,59136.0,59135.0,0.1606998]
[1725147285087,0.29845152,59136.0,59135.0,0.1606998]
[1725147287267,0.12935052,59136.0,59135.0,0.1606998]
[1725147287495,0.12935052,59136.0,59135.0,0.6680128]
[1725147287715,0.02935052,59136.0,59135.0,0.6680128]
[1725147287949,0.002818,59136.0,59135.0,0.6680128]
[1725147291467,0.1,59141.0,59135.0,0.6680128]
[1725147291468,0.33654595,59144.0,59135.0,0.3561088]
[1725147291688,0.169086,59142.0,59138.0,0.0816]
[1725147291921,0.338165,59143.0,59139.0,0.0619]
[1725147292155,0.169087,59141.0,59139.0,0.0619]
[1725147292408,0.338153,59145.0,59143.0,0.0619]
[1725147292409,0.169077,59145.0,59143.0,0.0619]
[1725147293036,0.19560691,59145.0,59143.0,0.0619]
[1725147293292,0.169078,59144.0,59143.0,0.0619]
[1725147293702,0.269078,59144.0,59143.0,0.0619]
[1725147295041,0.1,59144.0,59143.0,0.0619]
[1725147295275,0.29660591,59145.0,59143.0,0.0619]
[1725147295916,0.29660591,59145.0,59143.0,0.0629]
[1725147297073,0.29560591,59145.0,59143.0,0.0629]
[1725147297292,0.29660591,59145.0,59143.0,0.0689]
[1725147297524,0.29760591,59145.0,59143.0,0.0759]
[1725147298903,0.271076,59145.0,59143.0,0.0759]
[1725147301600,0.169078,59144.0,59143.0,0.0759]
[1725147301843,0.61385741,59144.0,59143.0,0.014]
[1725147302079,0.71385741,59144.0,59143.0,0.014]
[1725147302800,1.07221441,59144.0,59143.0,0.014]
[1725147303036,1.41037141,59144.0,59143.0,0.014]
[1725147303512,1.41037141,59144.0,59143.0,0.00663547]
[1725147303807,1.41037141,59144.0,59135.0,0.0632998]
[1725147303808,0.507304,59136.0,59135.0,0.0632998]
[1725147304542,0.507304,59136.0,59135.0,0.0008998]
[1725147304757,0.53383511,59136.0,59135.0,0.0008998]
[1725147305202,0.53483511,59136.0,59135.0,0.0148998]
[1725147306595,0.87303811,59136.0,59135.0,0.0148998]
[1725147307351,0.87403811,59136.0,59135.0,0.0278998]
[1725147308043,0.87303811,59136.0,59135.0,0.0148998]
[1725147308494,0.87303811,59136.0,59135.0,0.0138998]
[1725147308961,0.87303811,59136.0,59135.0,0.0208998]
[1725147309188,0.87403811,59136.0,59135.0,0.0208998]
[1725147310095,0.87403811,59136.0,59135.0,0.0078998]
[1725147310096,0.87303811,59136.0,59135.0,0.0078998]
[1725147310801,0.847507,59136.0,59135.0,0.0148998]
[1725147311030,0.847507,59136.0,59135.0,0.0078998]
[1725147311510,0.848507,59136.0,59135.0,0.0148998]
[1725147313910,0.87503887,59136.0,59135.0,0.0148998]
[1725147317541,0.87503887,59136.0,59135.0,0.1594998]
[1725147317800,0.53683587,59136.0,59135.0,0.1594998]
[1725147318698,0.510304,59136.0,59135.0,0.1594998]
[1725147321905,0.5368358,59136.0,59135.0,0.1594998]
[1725147328818,0.510304,59136.0,59135.0,0.1594998]
[1725147329030,0.172101,59136.0,59135.0,0.1594998]
[1725147329252,0.003,59136.0,59135.0,0.1594998]
[1725147334686,0.02953126,59136.0,59135.0,0.1594998]
[1725147338828,0.003,59136.0,59135.0,0.1594998]
[1725147342200,0.02953125,59136.0,59135.0,0.1594998]
[1725147343506,0.02953125,59136.0,59135.0,0.21033229]
[1725147345036,0.003,59136.0,59135.0,0.21033229]
[1725147347204,0.003,59136.0,59135.0,0.21033626]
[1725147348298,0.02953125,59136.0,59135.0,0.21033626]
[1725147348747,0.003,59136.0,59135.0,0.21033626]
[1725147350272,0.003,59136.0,59135.0,0.1594998]
[1725147350919,0.003,59136.0,59135.0,0.21033626]
[1725147351337,0.003,59136.0,59135.0,0.1594998]
[1725147351995,0.02953126,59136.0,59135.0,0.1594998]
[1725147352425,0.02953126,59136.0,59135.0,0.21034925]
[1725147353738,0.02953126,59136.0,59135.0,0.1594998]
[1725147358261,0.02953126,59136.0,59135.0,0.40825975]
[1725147358505,0.02953126,59136.0,59135.0,0.74646875]
[1725147358728,0.003,59136.0,59135.0,0.74646875]
[1725147360246,0.003,59136.0,59135.0,1.08467775]
[1725147361413,0.002,59136.0,59135.0,1.45332054]
[1725147361616,0.100818,59143.0,59139.0,0.168091]
[1725147361845,0.269899,59143.0,59140.0,0.0607]
[1725147362066,0.269899,59143.0,59140.0,0.0597]
[1725147363574,0.001,59143.0,59140.0,0.0727]
[1725147363782,0.001,59143.0,59140.0,0.0587]
[1725147363992,0.02753012,59143.0,59140.0,0.0587]
[1725147364244,0.19661212,59143.0,59140.0,0.0717]
[1725147364455,0.19661212,59143.0,59140.0,0.0847]
[1725147365769,0.1,59142.0,59140.0,0.0847]
[1725147366617,0.269084,59142.0,59140.0,0.0717]
[1725147367090,0.269084,59142.0,59140.0,0.0727]
[1725147367316,0.270084,59142.0,59140.0,0.0867]
[1725147367993,0.001,59142.0,59140.0,0.0867]
[1725147368211,0.170085,59142.0,59140.0,0.0867]
[1725147369344,0.169087,59141.0,59140.0,0.028]
[1725147369799,0.170084,59142.0,59140.0,0.028]
[1725147370011,0.269087,59141.0,59140.0,0.028]
[1725147370227,0.269087,59141.0,59140.0,0.014]
[1725147370445,0.270087,59141.0,59140.0,0.028]
[1725147370661,0.270087,59141.0,59140.0,0.014]
[1725147371052,0.271087,59141.0,59140.0,0.028]
[1725147374632,0.609261,59141.0,59140.0,0.028]
[1725147381490,0.947435,59141.0,59140.0,0.028]
[1725147382165,0.947435,59141.0,59140.0,0.0912]
[1725147382396,0.97396586,59141.0,59140.0,0.0912]
[1725147384579,0.97396586,59141.0,59140.0,0.0920998]
[1725147385242,0.947435,59141.0,59140.0,0.0920998]
[1725147388447,0.97396587,59141.0,59140.0,0.0920998]
[1725147388907,0.947435,59141.0,59140.0,0.0920998]
[1725147394076,0.609261,59141.0,59140.0,0.0920998]
[1725147395109,0.63579171,59141.0,59140.0,0.0920998]
[1725147401207,0.609261,59141.0,59140.0,0.0920998]
[1725147404207,0.63579167,59141.0,59140.0,0.0920998]
[1725147412048,0.12853067,59141.0,59140.0,0.6816698]
[1725147412503,0.02853067,59141.0,59140.0,0.6816698]
[1725147412730,0.12853067,59141.0,59140.0,0.41980397]
[1725147412955,0.12853067,59141.0,59140.0,0.25071397]
[1725147413179,0.12853067,59141.0,59140.0,0.41980397]
[1725147413407,0.12853067,59141.0,59140.0,0.25071397]
[1725147413635,0.12853067,59141.0,59140.0,0.3434898]
[1725147413862,0.02853067,59141.0,59140.0,0.1743998]
[1725147415018,0.02853067,59141.0,59140.0,0.17778108]
[1725147415256,0.002,59141.0,59140.0,1.06066196]
[1725147415452,0.002,59141.0,59140.0,1.18778731]
[1725147416098,0.002,59141.0,59140.0,1.04665005]
[1725147416099,0.001,59141.0,59140.0,1.04665005]
[1725147416383,0.000818,59142.0,59141.0,0.306487]
[1725147416611,0.000818,59142.0,59141.0,1.1199347]
[1725147417800,0.000818,59142.0,59141.0,1.01825997]
[1725147418460,0.02734471,59142.0,59141.0,1.03225997]
[1725147418861,0.000818,59142.0,59141.0,1.04625997]
[1725147420365,0.000818,59142.0,59141.0,1.04624946]
[1725147421486,0.000818,59142.0,59141.0,0.54098846]
[1725147421745,0.508071,59142.0,59141.0,0.1654]
[1725147421971,0.508071,59142.0,59141.0,0.0881]
[1725147422644,0.84624,59142.0,59141.0,0.0881]
[1725147423803,1.184409,59142.0,59141.0,0.028]
[1725147424020,1.284409,59142.0,59141.0,0.028]
[1725147426150,1.284409,59142.0,59141.0,0.0896]
[1725147427892,1.284409,59142.0,59141.0,0.028]
[1725147428116,1.284409,59142.0,59141.0,0.014]
[1725147428331,1.284409,59142.0,59141.0,0.026]
[1725147428548,1.284409,59142.0,59141.0,0.012]
[1725147428772,1.284409,59142.0,59140.0,0.0008998]
[1725147428773,0.845435,59141.0,59140.0,0.0008998]
[1725147429644,0.8719649,59141.0,59140.0,0.0008998]
[1725147429865,0.8719649,59141.0,59140.0,0.0138998]
[1725147430093,0.7028779,59141.0,59140.0,0.0268998]
[1725147430541,0.8719649,59141.0,59140.0,0.0268998]
[1725147431229,0.8719649,59141.0,59140.0,0.0138998]
[1725147431648,0.8719649,59141.0,59140.0,0.0128998]
[1725147432117,0.8719649,59141.0,59140.0,0.0248998]
[1725147437266,1.2101389,59141.0,59140.0,0.0248998]
[1725147437717,1.33896131,59141.0,59140.0,0.0248998]
[1725147437946,1.41826131,59141.0,59140.0,0.0248998]
[1725147438859,1.39606131,59141.0,59140.0,0.0248998]
[1725147439077,1.31676131,59141.0,59140.0,0.0248998]
[1725147441161,1.41676131,59141.0,59140.0,0.0248998]
[1725147443197,1.41757931,59141.0,59140.0,0.0248998]
[1725147455228,2.19723224,59141.0,59140.0,0.0248998]
[1725147455471,2.93002133,59141.0,59140.0,0.0248998]
[1725147455726,2.53086933,59141.0,59140.0,0.0248998]
[1725147455950,2.55586933,59141.0,59140.0,0.0248998]
[1725147456180,2.55586933,59141.0,59140.0,0.0128998]
[1725147456181,2.89404333,59141.0,59140.0,0.0128998]
[1725147456450,3.06259497,59141.0,59140.0,0.0128998]
[1725147456671,3.06359497,59141.0,59140.0,0.0128998]
[1725147456905,3.06259497,59141.0,59140.0,0.0128998]
[1725147457132,3.06259497,59141.0,59140.0,0.0008998]
[1725147457133,3.06459497,59141.0,59140.0,0.0008998]
[1725147457584,3.06559497,59141.0,59140.0,0.0008998]
[1725147458062,3.06459497,59141.0,59140.0,0.0008998]
[1725147458283,3.06459497,59141.0,59140.0,0.0018998]
[1725147458284,3.06759497,59141.0,59140.0,0.0018998]
[1725147458510,3.06559497,59141.0,59140.0,0.0018998]
[1725147458741,3.07359497,59141.0,59140.0,0.0028998]
[1725147464164,3.09499311,59141.0,59140.0,0.0028998]
[1725147465023,3.10178011,59141.0,59140.0,0.0028998]
[1725147465446,3.09606209,59141.0,59140.0,0.0028998]
[1725147466095,3.07466395,59141.0,59140.0,0.0028998]
[1725147466518,3.08466395,59141.0,59140.0,8e-07]
[1725147466754,3.08466395,59141.0,59135.0,0.0008998]
[1725147466755,1.978916,59136.0,59135.0,0.0008998]
[1725147466972,4.26455841,59136.0,59135.0,0.0008998]
[1725147467201,4.02455841,59136.0,59135.0,0.0008998]
[1725147468125,4.26455841,59136.0,59135.0,0.0008998]
[1725147468386,3.20038041,59136.0,59135.0,0.0008998]
[1725147468600,3.20138041,59136.0,59135.0,0.0008998]
[1725147469249,3.19938041,59136.0,59135.0,0.0008998]
[1725147469544,3.37193205,59136.0,59135.0,0.0008998]
[1725147469780,3.37093205,59136.0,59135.0,0.0008998]
[1725147470211,3.37393205,59136.0,59135.0,0.0008998]
[1725147471091,3.39163763,59136.0,59135.0,0.0008998]
[1725147471979,3.41283844,59136.0,59135.0,0.0008998]
[1725147472199,3.41483844,59136.0,59135.0,0.0008998]
[1725147475945,3.42162544,59136.0,59135.0,0.0008998]
[1725147476159,3.41962544,59136.0,59135.0,0.0008998]
[1725147476372,3.42162544,59136.0,59135.0,0.0008998]
[1725147478999,3.42750088,59136.0,59135.0,0.0008998]
[1725147480116,3.76570388,59136.0,59135.0,0.0008998]
[1725147480351,3.76570388,59136.0,59133.0,0.0008998]
[1725147480352,1.877177,59134.0,59133.0,0.0008998]
[1725147480563,5.502695,59134.0,59133.0,0.0008998]
[1725147480773,5.50858343,59134.0,59133.0,0.0008998]
[1725147480996,5.53512453,59134.0,59133.0,0.0008998]
[1725147481441,5.53512453,59134.0,59127.0,0.0008998]
[1725147481442,1.875276,59131.0,59127.0,0.0008998]
[1725147481670,5.36332241,59131.0,59127.0,0.0008998]
[1725147481882,5.72575441,59131.0,59127.0,0.0008998]
[1725147482121,1.98399141,59128.0,59127.0,0.0008998]
[1725147482327,3.04334205,59128.0,59127.0,0.0008998]
[1725147482557,6.03028205,59128.0,59127.0,0.0008998]
[1725147483250,6.03728205,59128.0,59127.0,0.0018998]
[1725147483474,6.03028205,59128.0,59127.0,0.0008998]
[1725147483743,6.03628205,59128.0,59127.0,0.0018998]
[1725147484196,6.03028205,59128.0,59127.0,0.0008998]
[1725147484925,6.03928205,59128.0,59127.0,0.0008998]
[1725147485149,5.43422764,59128.0,59127.0,0.0008998]
[1725147485378,5.54085005,59128.0,59127.0,0.0008998]
[1725147485599,5.54885005,59128.0,59127.0,0.0008998]
[1725147488619,5.52465005,59128.0,59127.0,0.0008998]
[1725147488896,3.369849,59128.0,59127.0,0.0008998]
[1725147489115,3.47647141,59128.0,59127.0,0.0008998]
[1725147489327,3.49760545,59128.0,59127.0,0.0008998]
[1725147490209,2.99072445,59128.0,59127.0,0.0008998]
[1725147490436,3.93143477,59128.0,59127.0,0.0008998]
[1725147490653,4.09998641,59128.0,59127.0,0.0008998]
[1725147492907,4.09798641,59128.0,59127.0,0.0008998]
[1725147493136,3.73892041,59128.0,59127.0,0.0008998]
[1725147493358,2.91683877,59128.0,59127.0,0.0667998]
[1725147494661,2.87503877,59128.0,59127.0,0.0667998]
[1725147495327,2.76841636,59128.0,59127.0,0.0667998]
[1725147495557,3.04359041,59128.0,59127.0,0.0667998]
[1725147498948,2.80190977,59128.0,59127.0,0.0667998]
[1725147500597,2.79690977,59128.0,59127.0,0.0667998]
[1725147500814,2.79190977,59128.0,59127.0,0.0667998]
[1725147501268,2.76890977,59128.0,59127.0,0.0667998]
[1725147507094,2.66172277,59128.0,59127.0,0.0667998]
[1725147507316,2.83280877,59128.0,59127.0,0.1500998]
[1725147509265,2.91773177,59128.0,59127.0,0.1500998]
[1725147511010,2.21185136,59128.0,59127.0,0.1500998]
[1725147511231,2.31847377,59128.0,59127.0,0.1500998]
[1725147531113,2.14934977,59128.0,59127.0,0.1500998]
[1725147531328,2.31847377,59128.0,59127.0,0.1500998]